Workbook

Sheet Sheet1
A1: Gaussian_Elimination_Excel, Prof. Mack Grady, Baylor, Version 2021_0915 | V1: Total | Z1: Sum | AA1: Sum | AB1: Sum | AC1: Sum | AD1: Sum | AE1: Sum | AF1: Sum | AG1: Sum | AH1: Sum | AI1: Sum | AJ1: Sum | AK1: Sum | AL1: Sum | AM1: Sum | AN1: Sum | AP1: Sum | AQ1: Sum | AR1: Sum | AS1: Sum | AT1: Sum | AU1: Sum | AV1: Sum | AW1: Sum | AX1: CORREL(y,y-hat) | AZ1: Min,Max x
A2: Name | V2: Abs | Z2: =SUM(Z6:Z600) -> 0 | AA2: =SUM(AA6:AA600) -> 0 | AB2: 0 | AC2: 0 | AD2: 0 | AE2: 0 | AF2: 0 | AG2: 0 | AH2: 0 | AI2: 0 | AJ2: 0 | AK2: 0 | AL2: 0 | AM2: 0 | AN2: 0 | AP2: =SUM(AP6:AP600) -> 0 | AQ2: 0 | AR2: 0 | AS2: 0 | AT2: 0 | AU2: 0 | AV2: 0 | AW2: 0 | AX2: =CORREL(Y6:Y600,AX6:AX600) ->  | AZ2: 1.01 | BC2: Correlation coefficient computed with traditional formula | BO2: Week of Aug 03, 2014
A3: Description | V3: b | X3: Enter x,y Pairs, | Z3: Power of x | AZ3: -0.99 | BE3: y-yavg | BF3: y-hat - y-hatavg | BG3: Numerator | BH3: (y-yavg)^2 | BI3: (y-hat - y-hatavg)^2 | BL3: Polynomial | BO3: Sweetwater Temp and RH
A4: Row of | B4: Column of A Matrix. Be sure to populate the A matrix and b vector each time you solve. | R4: Vector | T4: Vector | V4: Error | X4: Starting in Row 6 | Z4: 0 | AA4: =Z4+1 -> 1 | AB4: =AA4+1 -> 2 | AC4: 3 | AD4: =AC4+1 -> 4 | AE4: =AD4+1 -> 5 | AF4: =AE4+1 -> 6 | AG4: =AF4+1 -> 7 | AH4: =AG4+1 -> 8 | AI4: =AH4+1 -> 9 | AJ4: =AI4+1 -> 10 | AK4: =AJ4+1 -> 11 | AL4: =AK4+1 -> 12 | AM4: =AL4+1 -> 13 | AN4: =AM4+1 -> 14 | AX4: y-hat | AZ4: 50 points | BA4: Curve Fit | BC4: y avg | BD4: y-hat avg | BE4: Sum | BF4: Sum | BG4: Sum | BH4: Sum | BI4: Sum | BJ4: R^2 | BK4: R | BL4: Order | BO4: 20-minute readings
A5: A Matrix | B5: 1 | C5: =B5+1 -> 2 | D5: =C5+1 -> 3 | E5: 4 | F5: 5 | G5: 6 | H5: 7 | I5: 8 | J5: 9 | K5: 10 | L5: =K5+1 -> 11 | M5: =L5+1 -> 12 | N5: =M5+1 -> 13 | O5: =N5+1 -> 14 | P5: =O5+1 -> 15 | R5: x | T5: b | V5: 1.808275751e-14 | X5: x | Y5: y | Z5: x^ | AA5: x^ | AB5: x^ | AC5: x^ | AD5: x^ | AE5: x^ | AF5: x^ | AG5: x^ | AH5: x^ | AI5: x^ | AJ5: x^ | AK5: x^ | AL5: x^ | AM5: x^ | AN5: x^ | AP5: Y*X^0 | AQ5: Y*X^1 | AR5: Y*X^2 | AS5: Y*X^3 | AT5: Y*X^4 | AU5: Y*X^5 | AV5: Y*X^6 | AW5: Y*X^7 | AX5: at entered x | AZ5: x | BA5: y-hat | BC5: =AVERAGE(Y6:Y600) ->  | BD5: =AVERAGE(AX6:AX600) ->  | BE5: =SUM(BE6:BE600) -> 0 | BF5: =SUM(BF6:BF600) -> 0 | BG5: =SUM(BG6:BG600) -> 0 | BH5: =SUM(BH6:BH600) -> 0 | BI5: =SUM(BI6:BI600) -> 0 | BJ5: =BG5/SQRT(BH5*BI5) ->  | BK5: =IF(BJ5>0,SQRT(BJ5),0) ->  | BL5: 14 | BO5: TemperatureF | BP5: Humidity
A6: 1 | B6: 1 | C6: -3.045897678 | D6: -2.997015209 | E6: -3.023988471 | F6: 6.395819443 | G6: 5.662309993 | H6: -1.5397612 | I6: -1.97855827 | J6: 4.640516814 | K6: -3.79428484 | L6: 3.993785749 | M6: -2.968180446 | N6: 6.62099544 | O6: -3.244044081 | P6: 0.5005982194 | R6: -0.680275949 | T6: 2.459239105 | Z6: =IF(X6<>"",$X6^Z$4,"") ->  | AA6: =$X6^AA$4 -> 0 | AB6: 0 | AC6: 0 | AD6: 0 | AE6: 0 | AF6: 0 | AG6: 0 | AH6: 0 | AI6: 0 | AJ6: 0 | AK6: 0 | AL6: 0 | AM6: 0 | AN6: 0 | AP6: =IF(X6<>"",$Y6*Z6,"") ->  | AQ6: =IF(Y6<>"",$Y6*AA6,"") ->  | AS6: 0 | AT6: 0 | AU6: 0 | AV6: 0 | AW6: 0 | AX6: =IF(X6<>"",$R$6+$R$7*X6^1+$R$8*X6^2+$R$9*X6^3+$R$10*X6^4+$R$11*X6^5+$R$12*X6^6+$R$13*X6^7,"") ->  | AZ6: =AZ$2-1+(AZ$3-AZ$2+2)/50*(ROW()-6) -> 0.01 | BA6: =$R$6+$R$7*AZ6^1+$R$8*AZ6^2+$R$9*AZ6^3+$R$10*AZ6^4+$R$11*AZ6^5+$R$12*AZ6^6+$R$13*AZ6^7 -> -0.6638113887 | BE6: =IF(X6<>"",Y6-$BC$5,"") ->  | BF6: =IF(X6<>"",AX6-$BD$5,"") ->  | BG6: =IF(X6<>"",BE6*BF6,"") ->  | BH6: =IF(X6<>"",BE6^2,"") ->  | BI6: =IF(X6<>"",BF6^2,"") ->  | BO6: 86.5 | BP6: 28 | BR6: =BO6/10 -> 8.65 | BS6: =BP6/10 -> 2.8
A7: =A6+1 -> 2 | B7: 0 | C7: 1 | D7: 0.5908144168 | E7: 0.8273841519 | F7: -1.508580133 | G7: -1.119771773 | H7: 0.5632022383 | I7: 0.2044748884 | J7: -1.111745854 | K7: 1.185486466 | L7: -0.8961097627 | M7: 0.9012892163 | N7: -1.618622422 | O7: 0.8232217429 | P7: -0.3109282147 | R7: 1.661402478 | T7: -0.2693370157 | AA7: 0 | AB7: 0 | AC7: 0 | AD7: 0 | AE7: 0 | AF7: 0 | AG7: 0 | AH7: 0 | AI7: 0 | AJ7: 0 | AK7: 0 | AL7: 0 | AM7: 0 | AN7: 0 | AP7: =IF(X7<>"",$Y7*Z7,"") ->  | AQ7: =IF(Y7<>"",$Y7*AA7,"") ->  | AR7: =IF(Z7<>"",$Y7*AB7,"") ->  | AS7: =IF(AA7<>"",$Y7*AC7,"") -> 0 | AT7: =IF(AB7<>"",$Y7*AD7,"") -> 0 | AU7: =IF(AC7<>"",$Y7*AE7,"") -> 0 | AV7: =IF(AD7<>"",$Y7*AF7,"") -> 0 | AW7: =IF(AE7<>"",$Y7*AG7,"") -> 0 | AZ7: =AZ$2-1+(AZ$3-AZ$2+2)/50*(ROW()-6) -> 0.01 | BA7: =$R$6+$R$7*AZ7^1+$R$8*AZ7^2+$R$9*AZ7^3+$R$10*AZ7^4+$R$11*AZ7^5+$R$12*AZ7^6+$R$13*AZ7^7 -> -0.6638113887 | BO7: 86.5 | BP7: 28 | BR7: =BO7/10 -> 8.65 | BS7: =BP7/10 -> 2.8
A8: =A7+1 -> 3 | B8: 0 | C8: 0 | D8: 1 | E8: 1.839479828 | F8: 0.6467871944 | G8: 3.892549432 | H8: -3.860328305 | I8: -5.865471112 | J8: 4.436837152 | K8: -1.894492521 | L8: 8.38956486 | M8: -4.302497411 | N8: 0.7997155308 | O8: 4.106091744 | P8: 2.660092501 | R8: -1.503145578 | T8: 6.610720582 | AA8: 0 | AB8: 0 | AC8: 0 | AD8: 0 | AE8: 0 | AF8: 0 | AG8: 0 | AH8: 0 | AI8: 0 | AJ8: 0 | AK8: 0 | AL8: 0 | AM8: 0 | AN8: 0 | AP8: =IF(X8<>"",$Y8*Z8,"") ->  | AS8: 0 | AT8: 0 | AU8: 0 | AV8: 0 | AW8: 0 | AZ8: =AZ$2-1+(AZ$3-AZ$2+2)/50*(ROW()-6) -> 0.01 | BA8: -0.6638113887 | BO8: 85.1 | BP8: 29 | BR8: 8.51 | BS8: 2.9
A9: =A8+1 -> 4 | B9: 0 | C9: 0 | D9: 0 | E9: 1 | F9: 1.191395778 | G9: 2.856583557 | H9: -1.497871892 | I9: -3.499873653 | J9: 2.350867716 | K9: -0.925651706 | L9: 4.544578209 | M9: -2.205067916 | N9: 0.5899753016 | O9: 2.143559761 | P9: 1.201992945 | R9: 0.843283553 | T9: 4.015890805 | Z9: =IF(X9<>"",$X9^Z$4,"") ->  | AA9: 0 | AB9: 0 | AC9: 0 | AD9: 0 | AE9: 0 | AF9: 0 | AG9: 0 | AH9: 0 | AI9: 0 | AJ9: 0 | AK9: 0 | AL9: 0 | AM9: 0 | AN9: 0 | AS9: 0 | AT9: 0 | AU9: 0 | AV9: 0 | AW9: 0 | AZ9: =AZ$2-1+(AZ$3-AZ$2+2)/50*(ROW()-6) -> 0.01 | BA9: -0.6638113887 | BE9: =IF(X9<>"",Y9-$BC$5,"") ->  | BF9: =IF(X9<>"",AX9-$BD$5,"") ->  | BG9: =IF(X9<>"",BE9*BF9,"") ->  | BH9: =IF(X9<>"",BE9^2,"") ->  | BI9: =IF(X9<>"",BF9^2,"") ->  | BO9: 84.6 | BP9: 29 | BR9: 8.46 | BS9: 2.9
A10: 5 | B10: 0 | C10: 0 | D10: 0 | E10: 0 | F10: 1 | G10: 27.50255136 | H10: -37.72387259 | I10: -42.1503441 | J10: 49.28619069 | K10: -17.14294669 | L10: 66.0175929 | M10: -21.19796359 | N10: 15.89210065 | O10: 18.5182196 | P10: 15.56390424 | R10: 0.6887817504 | T10: 46.62739943 | Z10: =IF(X10<>"",$X10^Z$4,"") ->  | AA10: =IF(Y10<>"",$X10^AA$4,"") ->  | AB10: =IF(Z10<>"",$X10^AB$4,"") ->  | AZ10: =AZ$2-1+(AZ$3-AZ$2+2)/50*(ROW()-6) -> 0.01 | BA10: -0.6638113887 | BE10: =IF(X10<>"",Y10-$BC$5,"") ->  | BF10: =IF(X10<>"",AX10-$BD$5,"") ->  | BG10: =IF(X10<>"",BE10*BF10,"") ->  | BH10: =IF(X10<>"",BE10^2,"") ->  | BI10: =IF(X10<>"",BF10^2,"") ->  | BO10: 82.8 | BP10: 33 | BR10: 8.28 | BS10: 3.3
A11: 6 | B11: 0 | C11: 0 | D11: 0 | E11: 0 | F11: 0 | G11: 1 | H11: -1.418461065 | I11: -1.535978036 | J11: 1.829010531 | K11: -0.6322764459 | L11: 2.431241207 | M11: -0.7511473108 | N11: 0.5740034962 | O11: 0.6735844363 | P11: 0.5710426829 | R11: -0.9190498591 | T11: 1.70021825 | Z11: =IF(X11<>"",$X11^Z$4,"") ->  | AA11: =IF(Y11<>"",$X11^AA$4,"") ->  | AB11: =IF(Z11<>"",$X11^AB$4,"") ->  | AC11: =IF(AA11<>"",$X11^AC$4,"") ->  | AD11: =IF(AB11<>"",$X11^AD$4,"") ->  | AE11: =IF(AC11<>"",$X11^AE$4,"") ->  | AF11: =IF(AD11<>"",$X11^AF$4,"") ->  | AG11: =IF(AE11<>"",$X11^AG$4,"") ->  | AH11: =IF(AF11<>"",$X11^AH$4,"") ->  | AI11: =IF(AG11<>"",$X11^AI$4,"") ->  | AJ11: =IF(AH11<>"",$X11^AJ$4,"") ->  | AK11: =IF(AI11<>"",$X11^AK$4,"") ->  | AL11: =IF(AJ11<>"",$X11^AL$4,"") ->  | AM11: =IF(AK11<>"",$X11^AM$4,"") ->  | AN11: =IF(AL11<>"",$X11^AN$4,"") ->  | AZ11: 0.01 | BA11: -0.6638113887 | BO11: 81.3 | BP11: 35 | BR11: 8.13 | BS11: 3.5
A12: 7 | B12: 0 | C12: 0 | D12: 0 | E12: 0 | F12: 0 | G12: 0 | H12: 1 | I12: 1.329300935 | J12: -3.107059353 | K12: -0.3170970308 | L12: -0.7189996414 | M12: -0.5545737757 | N12: 0.468202992 | O12: 1.619561748 | P12: 0.5125587823 | R12: -1.688187912 | T12: 0.212720772 | AA12: =IF(Y12<>"",$X12^AA$4,"") ->  | AB12: =IF(Z12<>"",$X12^AB$4,"") ->  | AC12: =IF(AA12<>"",$X12^AC$4,"") ->  | AD12: =IF(AB12<>"",$X12^AD$4,"") ->  | AE12: =IF(AC12<>"",$X12^AE$4,"") ->  | AF12: =IF(AD12<>"",$X12^AF$4,"") ->  | AG12: =IF(AE12<>"",$X12^AG$4,"") ->  | AH12: =IF(AF12<>"",$X12^AH$4,"") ->  | AI12: =IF(AG12<>"",$X12^AI$4,"") ->  | AJ12: =IF(AH12<>"",$X12^AJ$4,"") ->  | AK12: =IF(AI12<>"",$X12^AK$4,"") ->  | AL12: =IF(AJ12<>"",$X12^AL$4,"") ->  | AM12: =IF(AK12<>"",$X12^AM$4,"") ->  | AN12: =IF(AL12<>"",$X12^AN$4,"") ->  | AZ12: 0.01 | BA12: -0.6638113887 | BO12: 79.5 | BP12: 38 | BR12: 7.95 | BS12: 3.8
A13: 8 | B13: 0 | C13: 0 | D13: 0 | E13: 0 | F13: 0 | G13: 0 | H13: 0 | I13: 1 | J13: 1.301908575 | K13: 0.3483010379 | L13: -0.4845607373 | M13: 1.23244611 | N13: 0.434810959 | O13: -2.294949906 | P13: -1.171057187 | R13: -1.152639935 | T13: -1.299331684 | AL13: =IF(AJ13<>"",$X13^AL$4,"") ->  | AZ13: 0.01 | BA13: -0.6638113887 | BO13: 79 | BP13: 39 | BR13: 7.9 | BS13: 3.9
A14: 9 | B14: 0 | C14: 0 | D14: 0 | E14: 0 | F14: 0 | G14: 0 | H14: 0 | I14: 0 | J14: 1 | K14: 0.423875165 | L14: 0.005206376909 | M14: 0.833149797 | N14: 0.05194585539 | O14: -1.382278265 | P14: -0.5638833835 | R14: -1.858080511 | T14: -0.5905054682 | AZ14: 0.01 | BA14: -0.6638113887 | BO14: 78.1 | BP14: 40 | BR14: 7.81 | BS14: 4
A15: 10 | B15: 0 | C15: 0 | D15: 0 | E15: 0 | F15: 0 | G15: 0 | H15: 0 | I15: 0 | J15: 0 | K15: 1 | L15: 1.9675734 | M15: -2.732008666 | N15: 5.134039291 | O15: 0.07630404183 | P15: 0.1177890564 | R15: -0.6244904359 | T15: 2.995748542 | AZ15: 0.01 | BA15: -0.6638113887 | BO15: 77.2 | BP15: 42 | BR15: 7.72 | BS15: 4.2
A16: 11 | B16: 0 | C16: 0 | D16: 0 | E16: 0 | F16: 0 | G16: 0 | H16: 0 | I16: 0 | J16: 0 | K16: 0 | L16: 1 | M16: 9.582237255 | N16: -31.86069158 | O16: -7.012028328 | P16: -0.1919634942 | R16: 0.9681110849 | T16: 0.5094909144 | AZ16: 0.01 | BA16: -0.6638113887 | BO16: 77 | BP16: 43 | BR16: 7.7 | BS16: 4.3
A17: 12 | B17: 0 | C17: 0 | D17: 0 | E17: 0 | F17: 0 | G17: 0 | H17: 0 | I17: 0 | J17: 0 | K17: 0 | L17: 0 | M17: 1 | N17: -3.127565725 | O17: -0.5988437572 | P17: -0.08052611776 | R17: -0.6410689085 | T17: -0.08531654843 | AZ17: 0.01 | BA17: -0.6638113887 | BO17: 77 | BP17: 43 | BR17: 7.7 | BS17: 4.3
A18: 13 | B18: 0 | C18: 0 | D18: 0 | E18: 0 | F18: 0 | G18: 0 | H18: 0 | I18: 0 | J18: 0 | K18: 0 | L18: 0 | M18: 0 | N18: 1 | O18: 0.3535047091 | P18: -0.07098041616 | R18: 0.03766658791 | T18: -0.2017194139 | AZ18: 0.01 | BA18: -0.6638113887 | BO18: 75.4 | BP18: 44 | BR18: 7.54 | BS18: 4.4
A19: 14 | B19: 0 | C19: 0 | D19: 0 | E19: 0 | F19: 0 | G19: 0 | H19: 0 | I19: 0 | J19: 0 | K19: 0 | L19: 0 | M19: 0 | N19: 0 | O19: 1 | P19: -0.3725987487 | R19: -0.9452414553 | T19: -0.4478092735 | AZ19: 0.01 | BA19: -0.6638113887 | BO19: 74.5 | BP19: 46 | BR19: 7.45 | BS19: 4.6
A20: 15 | B20: 0 | C20: 0 | D20: 0 | E20: 0 | F20: 0 | G20: 0 | H20: 0 | I20: 0 | J20: 0 | K20: 0 | L20: 0 | M20: 0 | N20: 0 | O20: 0 | P20: 112.3288348 | R20: -1.335034494 | T20: -149.962869 | AZ20: 0.01 | BA20: -0.6638113887 | BO20: 73.8 | BP20: 48 | BR20: 7.38 | BS20: 4.8
A21: Regarding Equation Solving: Clear the content of diagonal element (N+1) so that the program recognizes the dimension and knows where to stop. | AZ21: 0.01 | BA21: -0.6638113887 | BO21: 72.3 | BP21: 52 | BR21: 7.23 | BS21: 5.2
A22: Regarding Curve Fitting: To limit the highest polynomial, delete the appropriate diagonal element immediately after | T22: Pre- | AZ22: 0.01 | BA22: -0.6638113887 | BO22: 71.6 | BP22: 55 | BR22: 7.16 | BS22: 5.5
A23: pushing the "Load Curve Fitting Data" button, e.g., for 2nd order, delete diagonal element 3. | R23: Solved | T23: Solution | V23: Solved | AZ23: 0.01 | BA23: -0.6638113887 | BO23: 70.9 | BP23: 56 | BR23: 7.09 | BS23: 5.6
R24: X | T24: b | V24: b | AZ24: 0.01 | BA24: -0.6638113887 | BO24: 70.2 | BP24: 58 | BR24: 7.02 | BS24: 5.8
B25: 1 | C25: -3.045897678 | D25: -2.997015209 | E25: -3.023988471 | F25: 6.395819443 | G25: 5.662309993 | H25: -1.5397612 | I25: -1.97855827 | J25: 4.640516814 | K25: -3.79428484 | L25: 3.993785749 | M25: -2.968180446 | N25: 6.62099544 | O25: -3.244044081 | P25: 0.5005982194 | R25: -0.680275949 | T25: 2.459239105 | V25: 2.459239105 | AZ25: 0.01 | BA25: -0.6638113887 | BO25: 70 | BP25: 59 | BR25: 7 | BS25: 5.9
B26: 0 | C26: 1 | D26: 0.5908144168 | E26: 0.8273841519 | F26: -1.508580133 | G26: -1.119771773 | H26: 0.5632022383 | I26: 0.2044748884 | J26: -1.111745854 | K26: 1.185486466 | L26: -0.8961097627 | M26: 0.9012892163 | N26: -1.618622422 | O26: 0.8232217429 | P26: -0.3109282147 | R26: 1.661402478 | T26: -0.2693370157 | V26: -0.2693370157 | AZ26: 0.01 | BA26: -0.6638113887 | BO26: 68 | BP26: 64 | BR26: 6.8 | BS26: 6.4
B27: 0 | C27: 0 | D27: 1 | E27: 1.839479828 | F27: 0.6467871944 | G27: 3.892549432 | H27: -3.860328305 | I27: -5.865471112 | J27: 4.436837152 | K27: -1.894492521 | L27: 8.38956486 | M27: -4.302497411 | N27: 0.7997155308 | O27: 4.106091744 | P27: 2.660092501 | R27: -1.503145578 | T27: 6.610720582 | V27: 6.610720582 | AZ27: 0.01 | BA27: -0.6638113887 | BO27: 69.8 | BP27: 62 | BR27: 6.98 | BS27: 6.2
B28: 0 | C28: 0 | D28: 0 | E28: 1 | F28: 1.191395778 | G28: 2.856583557 | H28: -1.497871892 | I28: -3.499873653 | J28: 2.350867716 | K28: -0.925651706 | L28: 4.544578209 | M28: -2.205067916 | N28: 0.5899753016 | O28: 2.143559761 | P28: 1.201992945 | R28: 0.843283553 | T28: 4.015890805 | V28: 4.015890805 | AZ28: 0.01 | BA28: -0.6638113887 | BO28: 69.8 | BP28: 62 | BR28: 6.98 | BS28: 6.2
B29: 0 | C29: 0 | D29: 0 | E29: 0 | F29: 1 | G29: 27.50255136 | H29: -37.72387259 | I29: -42.1503441 | J29: 49.28619069 | K29: -17.14294669 | L29: 66.0175929 | M29: -21.19796359 | N29: 15.89210065 | O29: 18.5182196 | P29: 15.56390424 | R29: 0.6887817504 | T29: 46.62739943 | V29: 46.62739943 | AZ29: 0.01 | BA29: -0.6638113887 | BO29: 68.5 | BP29: 64 | BR29: 6.85 | BS29: 6.4
B30: 0 | C30: 0 | D30: 0 | E30: 0 | F30: 0 | G30: 1 | H30: -1.418461065 | I30: -1.535978036 | J30: 1.829010531 | K30: -0.6322764459 | L30: 2.431241207 | M30: -0.7511473108 | N30: 0.5740034962 | O30: 0.6735844363 | P30: 0.5710426829 | R30: -0.9190498591 | T30: 1.70021825 | V30: 1.70021825 | AZ30: 0.01 | BA30: -0.6638113887 | BO30: 67.5 | BP30: 68 | BR30: 6.75 | BS30: 6.8
B31: 0 | C31: 0 | D31: 0 | E31: 0 | F31: 0 | G31: 0 | H31: 1 | I31: 1.329300935 | J31: -3.107059353 | K31: -0.3170970308 | L31: -0.7189996414 | M31: -0.5545737757 | N31: 0.468202992 | O31: 1.619561748 | P31: 0.5125587823 | R31: -1.688187912 | T31: 0.212720772 | V31: 0.212720772 | AZ31: 0.01 | BA31: -0.6638113887 | BO31: 67.6 | BP31: 70 | BR31: 6.76 | BS31: 7
B32: 0 | C32: 0 | D32: 0 | E32: 0 | F32: 0 | G32: 0 | H32: 0 | I32: 1 | J32: 1.301908575 | K32: 0.3483010379 | L32: -0.4845607373 | M32: 1.23244611 | N32: 0.434810959 | O32: -2.294949906 | P32: -1.171057187 | R32: -1.152639935 | T32: -1.299331684 | V32: -1.299331684 | AZ32: 0.01 | BA32: -0.6638113887 | BO32: 68 | BP32: 71 | BR32: 6.8 | BS32: 7.1
B33: 0 | C33: 0 | D33: 0 | E33: 0 | F33: 0 | G33: 0 | H33: 0 | I33: 0 | J33: 1 | K33: 0.423875165 | L33: 0.005206376909 | M33: 0.833149797 | N33: 0.05194585539 | O33: -1.382278265 | P33: -0.5638833835 | R33: -1.858080511 | T33: -0.5905054682 | V33: -0.5905054682 | AZ33: 0.01 | BA33: -0.6638113887 | BO33: 67.5 | BP33: 72 | BR33: 6.75 | BS33: 7.2
B34: 0 | C34: 0 | D34: 0 | E34: 0 | F34: 0 | G34: 0 | H34: 0 | I34: 0 | J34: 0 | K34: 1 | L34: 1.9675734 | M34: -2.732008666 | N34: 5.134039291 | O34: 0.07630404183 | P34: 0.1177890564 | R34: -0.6244904359 | T34: 2.995748542 | V34: 2.995748542 | AZ34: 0.01 | BA34: -0.6638113887 | BO34: 68 | BP34: 71 | BR34: 6.8 | BS34: 7.1
B35: 0 | C35: 0 | D35: 0 | E35: 0 | F35: 0 | G35: 0 | H35: 0 | I35: 0 | J35: 0 | K35: 0 | L35: 1 | M35: 9.582237255 | N35: -31.86069158 | O35: -7.012028328 | P35: -0.1919634942 | R35: 0.9681110849 | T35: 0.5094909144 | V35: 0.5094909144 | AZ35: 0.01 | BA35: -0.6638113887 | BO35: 67.3 | BP35: 73 | BR35: 6.73 | BS35: 7.3
B36: 0 | C36: 0 | D36: 0 | E36: 0 | F36: 0 | G36: 0 | H36: 0 | I36: 0 | J36: 0 | K36: 0 | L36: 0 | M36: 1 | N36: -3.127565725 | O36: -0.5988437572 | P36: -0.08052611776 | R36: -0.6410689085 | T36: -0.08531654843 | V36: -0.08531654843 | AZ36: 0.01 | BA36: -0.6638113887 | BO36: 67.1 | BP36: 74 | BR36: 6.71 | BS36: 7.4
B37: 0 | C37: 0 | D37: 0 | E37: 0 | F37: 0 | G37: 0 | H37: 0 | I37: 0 | J37: 0 | K37: 0 | L37: 0 | M37: 0 | N37: 1 | O37: 0.3535047091 | P37: -0.07098041616 | R37: 0.03766658791 | T37: -0.2017194139 | V37: -0.2017194139 | AZ37: 0.01 | BA37: -0.6638113887 | BO37: 67.3 | BP37: 74 | BR37: 6.73 | BS37: 7.4
B38: 0 | C38: 0 | D38: 0 | E38: 0 | F38: 0 | G38: 0 | H38: 0 | I38: 0 | J38: 0 | K38: 0 | L38: 0 | M38: 0 | N38: 0 | O38: 1 | P38: -0.3725987487 | R38: -0.9452414553 | T38: -0.4478092735 | V38: -0.4478092735 | AX38: =IF(X38<>"",$R$6+$R$7*X38^1+$R$8*X38^2+$R$9*X38^3+$R$10*X38^4+$R$11*X38^5+$R$12*X38^6+$R$13*X38^7,"") ->  | AZ38: 0.01 | BA38: -0.6638113887 | BO38: 68.4 | BP38: 72 | BR38: 6.84 | BS38: 7.2
B39: 0 | C39: 0 | D39: 0 | E39: 0 | F39: 0 | G39: 0 | H39: 0 | I39: 0 | J39: 0 | K39: 0 | L39: 0 | M39: 0 | N39: 0 | O39: 0 | P39: 112.3288348 | R39: -1.335034494 | T39: -149.962869 | V39: -149.962869 | AZ39: 0.01 | BA39: -0.6638113887 | BO39: 70.7 | BP39: 67 | BR39: 7.07 | BS39: 6.7
AZ40: 0.01 | BA40: -0.6638113887 | BO40: 72.1 | BP40: 64 | BR40: 7.21 | BS40: 6.4
AZ41: 0.01 | BA41: -0.6638113887 | BO41: 73.6 | BP41: 62 | BR41: 7.36 | BS41: 6.2
AZ42: 0.01 | BA42: -0.6638113887 | BO42: 75 | BP42: 59 | BR42: 7.5 | BS42: 5.9
AZ43: 0.01 | BA43: -0.6638113887 | BO43: 76.5 | BP43: 56 | BR43: 7.65 | BS43: 5.6
AZ44: 0.01 | BA44: -0.6638113887 | BO44: 77.9 | BP44: 53 | BR44: 7.79 | BS44: 5.3
AZ45: 0.01 | BA45: -0.6638113887 | BO45: 78.8 | BP45: 51 | BR45: 7.88 | BS45: 5.1
AZ46: 0.01 | BA46: -0.6638113887 | BO46: 80.2 | BP46: 48 | BR46: 8.02 | BS46: 4.8
AZ47: 0.01 | BA47: -0.6638113887 | BO47: 80.6 | BP47: 45 | BR47: 8.06 | BS47: 4.5
AZ48: 0.01 | BA48: -0.6638113887 | BO48: 82.6 | BP48: 42 | BR48: 8.26 | BS48: 4.2
AZ49: 0.01 | BA49: -0.6638113887 | BO49: 83.8 | BP49: 37 | BR49: 8.38 | BS49: 3.7
AZ50: 0.01 | BA50: -0.6638113887 | BO50: 84 | BP50: 36 | BR50: 8.4 | BS50: 3.6
AZ51: 0.01 | BA51: -0.6638113887 | BO51: 84.4 | BP51: 36 | BR51: 8.44 | BS51: 3.6
AZ52: 0.01 | BA52: -0.6638113887 | BO52: 85.6 | BP52: 35 | BR52: 8.56 | BS52: 3.5
AZ53: 0.01 | BA53: -0.6638113887 | BO53: 86.4 | BP53: 31 | BR53: 8.64 | BS53: 3.1
AZ54: 0.01 | BA54: -0.6638113887 | BO54: 87.4 | BP54: 29 | BR54: 8.74 | BS54: 2.9
AZ55: 0.01 | BA55: -0.6638113887 | BO55: 88.2 | BP55: 28 | BR55: 8.82 | BS55: 2.8
AZ56: 0.01 | BA56: -0.6638113887 | BO56: 87.4 | BP56: 30 | BR56: 8.74 | BS56: 3
BO57: 86.7 | BP57: 31 | BR57: 8.67 | BS57: 3.1
BO58: 87.3 | BP58: 29 | BR58: 8.73 | BS58: 2.9
BO59: 89.1 | BP59: 26 | BR59: 8.91 | BS59: 2.6
BO60: 89.6 | BP60: 23 | BR60: 8.96 | BS60: 2.3
BO61: 89.4 | BP61: 22 | BR61: 8.94 | BS61: 2.2
BO62: 89.8 | BP62: 21 | BR62: 8.98 | BS62: 2.1
BO63: 89.2 | BP63: 21 | BR63: 8.92 | BS63: 2.1
BO64: 90.7 | BP64: 22 | BR64: 9.07 | BS64: 2.2
BO65: 90 | BP65: 21 | BR65: 9 | BS65: 2.1
BO66: 90 | BP66: 19 | BR66: 9 | BS66: 1.9
BO67: 90.1 | BP67: 21 | BR67: 9.01 | BS67: 2.1
BO68: 90.1 | BP68: 24 | BR68: 9.01 | BS68: 2.4
BO69: 89.8 | BP69: 25 | BR69: 8.98 | BS69: 2.5
BO70: 89.1 | BP70: 24 | BR70: 8.91 | BS70: 2.4
AQ71: =IF(Y71<>"",$Y71*AA71,"") ->  | AR71: =IF(Z71<>"",$Y71*AB71,"") ->  | AS71: =IF(AA71<>"",$Y71*AC71,"") ->  | AT71: =IF(AB71<>"",$Y71*AD71,"") ->  | AU71: =IF(AC71<>"",$Y71*AE71,"") ->  | AV71: =IF(AD71<>"",$Y71*AF71,"") ->  | AW71: =IF(AE71<>"",$Y71*AG71,"") ->  | AX71: =IF(X71<>"",$R$6+$R$7*X71^1+$R$8*X71^2+$R$9*X71^3+$R$10*X71^4+$R$11*X71^5+$R$12*X71^6+$R$13*X71^7,"") ->  | BO71: 89.4 | BP71: 23 | BR71: =BO71/10 -> 8.94 | BS71: =BP71/10 -> 2.3
AP72: =IF(X72<>"",$Y72*Z72,"") ->  | BO72: 88.5 | BP72: 24 | BR72: 8.85 | BS72: 2.4
BO73: 87.8 | BP73: 24 | BR73: 8.78 | BS73: 2.4
BE74: =IF(X74<>"",Y74-$BC$5,"") ->  | BF74: =IF(X74<>"",AX74-$BD$5,"") ->  | BG74: =IF(X74<>"",BE74*BF74,"") ->  | BH74: =IF(X74<>"",BE74^2,"") ->  | BI74: =IF(X74<>"",BF74^2,"") ->  | BO74: 87.1 | BP74: 26 | BR74: 8.71 | BS74: 2.6
Z75: =IF(X75<>"",$X75^Z$4,"") ->  | AA75: =IF(Y75<>"",$X75^AA$4,"") ->  | AB75: =IF(Z75<>"",$X75^AB$4,"") ->  | AC75: =IF(AA75<>"",$X75^AC$4,"") ->  | AD75: =IF(AB75<>"",$X75^AD$4,"") ->  | AE75: =IF(AC75<>"",$X75^AE$4,"") ->  | AF75: =IF(AD75<>"",$X75^AF$4,"") ->  | AG75: =IF(AE75<>"",$X75^AG$4,"") ->  | AH75: =IF(AF75<>"",$X75^AH$4,"") ->  | AI75: =IF(AG75<>"",$X75^AI$4,"") ->  | AJ75: =IF(AH75<>"",$X75^AJ$4,"") ->  | AK75: =IF(AI75<>"",$X75^AK$4,"") ->  | AL75: =IF(AJ75<>"",$X75^AL$4,"") ->  | AM75: =IF(AK75<>"",$X75^AM$4,"") ->  | AN75: =IF(AL75<>"",$X75^AN$4,"") ->  | BO75: 85.6 | BP75: 28 | BR75: 8.56 | BS75: 2.8
BO76: 83.7 | BP76: 30 | BR76: 8.37 | BS76: 3
BO77: 82.6 | BP77: 32 | BR77: 8.26 | BS77: 3.2
BO78: 80.6 | BP78: 34 | BR78: 8.06 | BS78: 3.4
BO79: 81.1 | BP79: 34 | BR79: 8.11 | BS79: 3.4
BO80: 80.2 | BP80: 35 | BR80: 8.02 | BS80: 3.5
BO81: 79.3 | BP81: 36 | BR81: 7.93 | BS81: 3.6
BO82: 78.1 | BP82: 39 | BR82: 7.81 | BS82: 3.9
BO83: 78.8 | BP83: 38 | BR83: 7.88 | BS83: 3.8
BO84: 78.3 | BP84: 38 | BR84: 7.83 | BS84: 3.8
BO85: 76.8 | BP85: 40 | BR85: 7.68 | BS85: 4
BO86: 75.7 | BP86: 43 | BR86: 7.57 | BS86: 4.3
BO87: 74.7 | BP87: 45 | BR87: 7.47 | BS87: 4.5
BO88: 73.6 | BP88: 47 | BR88: 7.36 | BS88: 4.7
BO89: 73.6 | BP89: 48 | BR89: 7.36 | BS89: 4.8
BO90: 72.7 | BP90: 51 | BR90: 7.27 | BS90: 5.1
BO91: 71.6 | BP91: 55 | BR91: 7.16 | BS91: 5.5
BO92: 72 | BP92: 58 | BR92: 7.2 | BS92: 5.8
BO93: 71.4 | BP93: 60 | BR93: 7.14 | BS93: 6
BO94: 70.9 | BP94: 62 | BR94: 7.09 | BS94: 6.2
BO95: 70.9 | BP95: 63 | BR95: 7.09 | BS95: 6.3
BO96: 69.8 | BP96: 66 | BR96: 6.98 | BS96: 6.6
BO97: 69.8 | BP97: 66 | BR97: 6.98 | BS97: 6.6
BO98: 70.7 | BP98: 68 | BR98: 7.07 | BS98: 6.8
BO99: 69.8 | BP99: 74 | BR99: 6.98 | BS99: 7.4
BO100: 69.8 | BP100: 76 | BR100: 6.98 | BS100: 7.6
BO101: 69.4 | BP101: 79 | BR101: 6.94 | BS101: 7.9
BO102: 69.1 | BP102: 80 | BR102: 6.91 | BS102: 8
BO103: 68.5 | BP103: 82 | BR103: 6.85 | BS103: 8.2
BO104: 68.2 | BP104: 84 | BR104: 6.82 | BS104: 8.4
BO105: 68.4 | BP105: 84 | BR105: 6.84 | BS105: 8.4
Z106: =IF(X106<>"",$X106^Z$4,"") ->  | AA106: =IF(Y106<>"",$X106^AA$4,"") ->  | AB106: =IF(Z106<>"",$X106^AB$4,"") ->  | AC106: =IF(AA106<>"",$X106^AC$4,"") ->  | AD106: =IF(AB106<>"",$X106^AD$4,"") ->  | AE106: =IF(AC106<>"",$X106^AE$4,"") ->  | AF106: =IF(AD106<>"",$X106^AF$4,"") ->  | AG106: =IF(AE106<>"",$X106^AG$4,"") ->  | AH106: =IF(AF106<>"",$X106^AH$4,"") ->  | AI106: =IF(AG106<>"",$X106^AI$4,"") ->  | AJ106: =IF(AH106<>"",$X106^AJ$4,"") ->  | AK106: =IF(AI106<>"",$X106^AK$4,"") ->  | AL106: =IF(AJ106<>"",$X106^AL$4,"") ->  | AM106: =IF(AK106<>"",$X106^AM$4,"") ->  | AN106: =IF(AL106<>"",$X106^AN$4,"") ->  | AP106: =IF(X106<>"",$Y106*Z106,"") ->  | AQ106: =IF(Y106<>"",$Y106*AA106,"") ->  | AR106: =IF(Z106<>"",$Y106*AB106,"") ->  | AS106: =IF(AA106<>"",$Y106*AC106,"") ->  | AT106: =IF(AB106<>"",$Y106*AD106,"") ->  | AU106: =IF(AC106<>"",$Y106*AE106,"") ->  | AV106: =IF(AD106<>"",$Y106*AF106,"") ->  | AW106: =IF(AE106<>"",$Y106*AG106,"") ->  | AX106: =IF(X106<>"",$R$6+$R$7*X106^1+$R$8*X106^2+$R$9*X106^3+$R$10*X106^4+$R$11*X106^5+$R$12*X106^6+$R$13*X106^7,"") ->  | BE106: =IF(X106<>"",Y106-$BC$5,"") ->  | BF106: =IF(X106<>"",AX106-$BD$5,"") ->  | BG106: =IF(X106<>"",BE106*BF106,"") ->  | BH106: =IF(X106<>"",BE106^2,"") ->  | BI106: =IF(X106<>"",BF106^2,"") ->  | BO106: 68.9 | BP106: 84 | BR106: 6.89 | BS106: 8.4
BO107: 70.5 | BP107: 81 | BR107: 7.05 | BS107: 8.1
BO108: 72.5 | BP108: 78 | BR108: 7.25 | BS108: 7.8
BO109: 73.6 | BP109: 75 | BR109: 7.36 | BS109: 7.5
BO110: 75.4 | BP110: 71 | BR110: 7.54 | BS110: 7.1
BO111: 76.8 | BP111: 68 | BR111: 7.68 | BS111: 6.8
BO112: 78.1 | BP112: 65 | BR112: 7.81 | BS112: 6.5
BO113: 79.2 | BP113: 62 | BR113: 7.92 | BS113: 6.2
BO114: 80.2 | BP114: 58 | BR114: 8.02 | BS114: 5.8
BO115: 81.5 | BP115: 53 | BR115: 8.15 | BS115: 5.3
BO116: 82.4 | BP116: 50 | BR116: 8.24 | BS116: 5
BO117: 83.1 | BP117: 48 | BR117: 8.31 | BS117: 4.8
BO118: 83.3 | BP118: 42 | BR118: 8.33 | BS118: 4.2
BO119: 86.4 | BP119: 39 | BR119: 8.64 | BS119: 3.9
BO120: 87.3 | BP120: 35 | BR120: 8.73 | BS120: 3.5
BO121: 86.2 | BP121: 36 | BR121: 8.62 | BS121: 3.6
BO122: 88 | BP122: 31 | BR122: 8.8 | BS122: 3.1
BO123: 88.7 | BP123: 32 | BR123: 8.87 | BS123: 3.2
BO124: 89.6 | BP124: 31 | BR124: 8.96 | BS124: 3.1
BO125: 88.5 | BP125: 30 | BR125: 8.85 | BS125: 3
BO126: 89.8 | BP126: 29 | BR126: 8.98 | BS126: 2.9
BO127: 90.3 | BP127: 27 | BR127: 9.03 | BS127: 2.7
BO128: 91.2 | BP128: 25 | BR128: 9.12 | BS128: 2.5
BO129: 91.2 | BP129: 25 | BR129: 9.12 | BS129: 2.5
BO130: 90.9 | BP130: 25 | BR130: 9.09 | BS130: 2.5
BO131: 91.2 | BP131: 25 | BR131: 9.12 | BS131: 2.5
BO132: 92.8 | BP132: 25 | BR132: 9.28 | BS132: 2.5
BO133: 91.6 | BP133: 24 | BR133: 9.16 | BS133: 2.4
BO134: 91.9 | BP134: 23 | BR134: 9.19 | BS134: 2.3
BO135: 91.2 | BP135: 23 | BR135: =BO135/10 -> 9.12 | BS135: =BP135/10 -> 2.3
BO136: 90.9 | BP136: 22 | BR136: 9.09 | BS136: 2.2
BO137: 91.6 | BP137: 20 | BR137: 9.16 | BS137: 2
BO138: 90.9 | BP138: 19 | BR138: 9.09 | BS138: 1.9
BO139: 90.7 | BP139: 20 | BR139: 9.07 | BS139: 2
BO140: 90.1 | BP140: 21 | BR140: 9.01 | BS140: 2.1
BO141: 89.1 | BP141: 23 | BR141: 8.91 | BS141: 2.3
BO142: 86.9 | BP142: 26 | BR142: 8.69 | BS142: 2.6
BO143: 84.2 | BP143: 29 | BR143: 8.42 | BS143: 2.9
BO144: 83.3 | BP144: 30 | BR144: 8.33 | BS144: 3
BO145: 83.3 | BP145: 30 | BR145: 8.33 | BS145: 3
BO146: 83.8 | BP146: 29 | BR146: 8.38 | BS146: 2.9
BO147: 83.5 | BP147: 30 | BR147: 8.35 | BS147: 3
BO148: 83.3 | BP148: 31 | BR148: 8.33 | BS148: 3.1
BO149: 82.6 | BP149: 31 | BR149: 8.26 | BS149: 3.1
BO150: 81.3 | BP150: 33 | BR150: 8.13 | BS150: 3.3
BO151: 80.6 | BP151: 34 | BR151: 8.06 | BS151: 3.4
BO152: 77.2 | BP152: 40 | BR152: 7.72 | BS152: 4
BO153: 77 | BP153: 41 | BR153: 7.7 | BS153: 4.1
BO154: 78.4 | BP154: 45 | BR154: 7.84 | BS154: 4.5
BO155: 77.5 | BP155: 48 | BR155: 7.75 | BS155: 4.8
BO156: 77.4 | BP156: 50 | BR156: 7.74 | BS156: 5
BO157: 77.2 | BP157: 53 | BR157: 7.72 | BS157: 5.3
BO158: 75.6 | BP158: 56 | BR158: 7.56 | BS158: 5.6
BO159: 75.4 | BP159: 58 | BR159: 7.54 | BS159: 5.8
BO160: 76.1 | BP160: 59 | BR160: 7.61 | BS160: 5.9
BO161: 75.6 | BP161: 61 | BR161: 7.56 | BS161: 6.1
BO162: 76.3 | BP162: 62 | BR162: 7.63 | BS162: 6.2
BO163: 75.7 | BP163: 65 | BR163: 7.57 | BS163: 6.5
BO164: 75.6 | BP164: 66 | BR164: 7.56 | BS164: 6.6
BO165: 75.2 | BP165: 67 | BR165: 7.52 | BS165: 6.7
BO166: 75.2 | BP166: 67 | BR166: 7.52 | BS166: 6.7
BO167: 74.5 | BP167: 69 | BR167: 7.45 | BS167: 6.9
BO168: 73.9 | BP168: 70 | BR168: 7.39 | BS168: 7
BO169: 73.9 | BP169: 70 | BR169: 7.39 | BS169: 7
Z170: =IF(X170<>"",$X170^Z$4,"") ->  | AA170: =IF(Y170<>"",$X170^AA$4,"") ->  | AB170: =IF(Z170<>"",$X170^AB$4,"") ->  | AC170: =IF(AA170<>"",$X170^AC$4,"") ->  | AD170: =IF(AB170<>"",$X170^AD$4,"") ->  | AE170: =IF(AC170<>"",$X170^AE$4,"") ->  | AF170: =IF(AD170<>"",$X170^AF$4,"") ->  | AG170: =IF(AE170<>"",$X170^AG$4,"") ->  | AH170: =IF(AF170<>"",$X170^AH$4,"") ->  | AI170: =IF(AG170<>"",$X170^AI$4,"") ->  | AJ170: =IF(AH170<>"",$X170^AJ$4,"") ->  | AK170: =IF(AI170<>"",$X170^AK$4,"") ->  | AL170: =IF(AJ170<>"",$X170^AL$4,"") ->  | AM170: =IF(AK170<>"",$X170^AM$4,"") ->  | AN170: =IF(AL170<>"",$X170^AN$4,"") ->  | AP170: =IF(X170<>"",$Y170*Z170,"") ->  | AQ170: =IF(Y170<>"",$Y170*AA170,"") ->  | AR170: =IF(Z170<>"",$Y170*AB170,"") ->  | AS170: =IF(AA170<>"",$Y170*AC170,"") ->  | AT170: =IF(AB170<>"",$Y170*AD170,"") ->  | AU170: =IF(AC170<>"",$Y170*AE170,"") ->  | AV170: =IF(AD170<>"",$Y170*AF170,"") ->  | AW170: =IF(AE170<>"",$Y170*AG170,"") ->  | AX170: =IF(X170<>"",$R$6+$R$7*X170^1+$R$8*X170^2+$R$9*X170^3+$R$10*X170^4+$R$11*X170^5+$R$12*X170^6+$R$13*X170^7,"") ->  | BE170: =IF(X170<>"",Y170-$BC$5,"") ->  | BF170: =IF(X170<>"",AX170-$BD$5,"") ->  | BG170: =IF(X170<>"",BE170*BF170,"") ->  | BH170: =IF(X170<>"",BE170^2,"") ->  | BI170: =IF(X170<>"",BF170^2,"") ->  | BO170: 73.8 | BP170: 71 | BR170: 7.38 | BS170: 7.1
BO171: 73.8 | BP171: 72 | BR171: 7.38 | BS171: 7.2
BO172: 73.4 | BP172: 73 | BR172: 7.34 | BS172: 7.3
BO173: 73.4 | BP173: 74 | BR173: 7.34 | BS173: 7.4
BO174: 74.3 | BP174: 72 | BR174: 7.43 | BS174: 7.2
BO175: 75.4 | BP175: 70 | BR175: 7.54 | BS175: 7
BO176: 77.2 | BP176: 66 | BR176: 7.72 | BS176: 6.6
BO177: 79.2 | BP177: 61 | BR177: 7.92 | BS177: 6.1
BO178: 79.9 | BP178: 59 | BR178: 7.99 | BS178: 5.9
BO179: 81.9 | BP179: 55 | BR179: 8.19 | BS179: 5.5
BO180: 83.1 | BP180: 51 | BR180: 8.31 | BS180: 5.1
BO181: 84.4 | BP181: 48 | BR181: 8.44 | BS181: 4.8
BO182: 85.1 | BP182: 46 | BR182: 8.51 | BS182: 4.6
BO183: 86 | BP183: 44 | BR183: 8.6 | BS183: 4.4
BO184: 86.4 | BP184: 42 | BR184: 8.64 | BS184: 4.2
BO185: 86.9 | BP185: 41 | BR185: 8.69 | BS185: 4.1
BO186: 87.3 | BP186: 40 | BR186: 8.73 | BS186: 4
BO187: 87.4 | BP187: 39 | BR187: 8.74 | BS187: 3.9
BO188: 88.5 | BP188: 36 | BR188: 8.85 | BS188: 3.6
BO189: 88.5 | BP189: 34 | BR189: 8.85 | BS189: 3.4
BO190: 88.7 | BP190: 34 | BR190: 8.87 | BS190: 3.4
BO191: 89.8 | BP191: 31 | BR191: 8.98 | BS191: 3.1
BO192: 90.9 | BP192: 29 | BR192: 9.09 | BS192: 2.9
BO193: 90.7 | BP193: 29 | BR193: 9.07 | BS193: 2.9
BO194: 91.9 | BP194: 27 | BR194: 9.19 | BS194: 2.7
BO195: 93 | BP195: 26 | BR195: 9.3 | BS195: 2.6
BO196: 93 | BP196: 24 | BR196: 9.3 | BS196: 2.4
BO197: 94.8 | BP197: 23 | BR197: 9.48 | BS197: 2.3
BO198: 94.6 | BP198: 22 | BR198: 9.46 | BS198: 2.2
BO199: 93 | BP199: 24 | BR199: =BO199/10 -> 9.3 | BS199: =BP199/10 -> 2.4
BO200: 93.4 | BP200: 23 | BR200: 9.34 | BS200: 2.3
... 353 more rows

Sheet Sheet2

Sheet Sheet3
